bitfinex/quotes_BTCUSD_20240712
["timestamp","ask_amount","ask_price","bid_price","bid_amount"]
[1720792197662,0.00801248,57916.0,57915.0,1.2324]
[1720792198093,0.00801248,57916.0,57915.0,1.5455732]
[1720792198528,0.00801248,57916.0,57915.0,1.2324]
[1720792198735,0.00801248,57916.0,57915.0,1.405066]
[1720792198956,0.00801248,57916.0,57915.0,1.2324]
[1720792199602,0.00801248,57916.0,57915.0,1.750399]
[1720792199819,0.00801248,57916.0,57915.0,2.095732]
[1720792200465,0.00801248,57916.0,57915.0,2.6713024]
[1720792200692,0.00801248,57916.0,57915.0,1.750399]
[1720792200899,0.00801248,57916.0,57915.0,1.810399]
[1720792201115,0.00801248,57916.0,57915.0,2.301632]
[1720792201239,0.00801248,57916.0,57915.0,1.750399]
[1720792201450,0.00801248,57916.0,57915.0,2.155732]
[1720792201854,0.00801248,57916.0,57915.0,1.405066]
[1720792202059,0.00801248,57916.0,57915.0,2.155732]
[1720792202267,0.00801248,57916.0,57915.0,2.3259694]
[1720792202685,0.00801248,57916.0,57915.0,1.2324]
[1720792202937,0.07143504,57916.0,57915.0,1.2324]
[1720792204189,0.00801248,57916.0,57915.0,1.2324]
[1720792205035,0.07143504,57916.0,57915.0,1.2324]
[1720792205242,0.00801248,57916.0,57915.0,1.2324]
[1720792205861,0.00801248,57916.0,57915.0,2.2659694]
[1720792206069,0.00801248,57916.0,57915.0,1.750399]
[1720792206265,0.00801248,57916.0,57915.0,1.2324]
[1720792206478,0.00801248,57916.0,57915.0,1.750399]
[1720792206679,0.00405902,57927.0,57915.0,1.2324]
[1720792206893,0.00405902,57927.0,57916.0,0.08817788]
[1720792207100,0.05177124,57926.0,57916.0,0.08817788]
[1720792207306,0.01076772,57925.0,57916.0,0.08817788]
[1720792207503,0.01076772,57924.0,57916.0,0.08817788]
[1720792207708,0.01076772,57923.0,57917.0,0.00345304]
[1720792207910,0.01076772,57922.0,57918.0,0.00306353]
[1720792208201,0.06405902,57927.0,57918.0,0.00306353]
[1720792208406,0.06,57921.0,57918.0,0.00306353]
[1720792208540,0.06,57921.0,57915.0,1.2324]
[1720792208910,0.04086606,57920.0,57915.0,1.2324]
[1720792209137,0.05163536,57919.0,57915.0,1.2324]
[1720792209272,0.11163536,57919.0,57915.0,1.2324]
[1720792209476,0.05163536,57918.0,57915.0,1.2324]
[1720792209682,0.1404,57926.0,57917.0,0.08511435]
[1720792209909,0.1404,57926.0,57915.0,1.35564]
[1720792209910,0.052011,57925.0,57915.0,1.2324]
[1720792210117,0.05191824,57924.0,57916.0,0.00306353]
[1720792210526,0.05191824,57923.0,57917.0,1.2323]
[1720792210750,0.05191824,57922.0,57918.0,0.00306353]
[1720792210957,0.05191824,57921.0,57918.0,0.00306353]
[1720792211169,0.05191824,57920.0,57918.0,0.00306353]
[1720792211374,0.01076835,57919.0,57918.0,0.00306353]
[1720792211601,0.05183665,57925.0,57918.0,0.00306353]
[1720792211804,0.1404,57926.0,57918.0,0.00306353]
[1720792211805,0.05183665,57924.0,57918.0,0.00306353]
[1720792211963,0.05183665,57923.0,57918.0,0.00306353]
[1720792212152,0.05183665,57922.0,57918.0,0.00306353]
[1720792212508,0.01076835,57921.0,57918.0,0.08817788]
[1720792212651,0.01076835,57920.0,57918.0,0.08817788]
[1720792212855,0.01076835,57919.0,57918.0,0.00306353]
[1720792213079,0.01076835,57925.0,57918.0,0.00306353]
[1720792213288,0.05182882,57924.0,57918.0,0.00306353]
[1720792213635,0.1404,57926.0,57918.0,0.08817788]
[1720792213636,0.01076676,57923.0,57918.0,0.08817788]
[1720792213844,0.01076593,57922.0,57918.0,0.00306353]
[1720792214044,0.01076593,57921.0,57918.0,0.08817788]
[1720792214266,0.0793,57926.0,57918.0,0.08817788]
[1720792214465,0.0793,57926.0,57918.0,0.00306353]
[1720792214466,0.04053554,57925.0,57918.0,0.00306353]
[1720792214676,0.04053554,57924.0,57918.0,0.08817788]
[1720792214882,0.04053554,57923.0,57918.0,0.08817788]
[1720792215082,0.0793,57926.0,57918.0,0.00306353]
[1720792215287,0.04046112,57925.0,57918.0,0.00306353]
[1720792216102,0.0404712,57924.0,57918.0,0.00306353]
[1720792216310,0.0404712,57923.0,57918.0,0.00306353]
[1720792216523,0.01343271,57922.0,57920.0,0.00306353]
[1720792216713,0.05416124,57922.0,57920.0,0.00306353]
[1720792216924,0.04072853,57921.0,57920.0,0.00306353]
[1720792217274,0.04072853,57921.0,57920.0,0.08817788]
[1720792217480,0.00405902,57927.0,57920.0,0.26082888]
[1720792217668,0.04061971,57926.0,57920.0,0.08817788]
[1720792217883,0.04061971,57925.0,57920.0,0.00306353]
[1720792218090,0.04061971,57924.0,57920.0,0.08817788]
[1720792218305,0.0402408,57923.0,57920.0,0.08817788]
[1720792218544,0.05162126,57926.0,57920.0,0.08817788]
[1720792218738,0.04024045,57925.0,57920.0,0.08817788]
[1720792218987,0.00405902,57927.0,57920.0,0.08817788]
[1720792218988,0.04024045,57924.0,57920.0,0.08817788]
[1720792219193,0.04024045,57923.0,57920.0,0.08817788]
[1720792219396,0.05162126,57925.0,57921.0,0.172646]
[1720792219518,0.05162126,57925.0,57922.0,0.00306353]
[1720792219519,0.04005276,57924.0,57922.0,0.00306353]
[1720792219721,0.04005276,57923.0,57922.0,0.00306353]
[1720792219926,0.04005549,57923.0,57921.0,0.00306353]
[1720792220128,0.05170223,57926.0,57921.0,0.00306353]
[1720792220328,0.05170223,57924.0,57923.0,0.517927]
[1720792220560,0.05170223,57926.0,57924.0,0.00306353]
[1720792220755,0.09141625,57925.0,57924.0,0.00306353]
[1720792221020,0.03971402,57925.0,57924.0,0.00306353]
[1720792221220,0.03971402,57925.0,57920.0,0.00306353]
[1720792221373,0.05172422,57922.0,57920.0,0.00306353]
[1720792221550,0.07896383,57921.0,57920.0,0.00306353]
[1720792221782,0.06638695,57921.0,57920.0,0.00306353]
[1720792221994,0.14263071,57921.0,57920.0,0.00306353]
[1720792222200,0.14263532,57921.0,57920.0,0.00306353]
[1720792222408,0.14263532,57921.0,57920.0,1.23536353]
[1720792222409,0.03914734,57921.0,57920.0,1.23536353]
[1720792222604,0.11676409,57921.0,57920.0,1.2323]
[1720792223027,0.03914734,57921.0,57920.0,1.2323]
[1720792223240,0.11611663,57921.0,57920.0,1.2323]
[1720792223453,0.11611698,57921.0,57920.0,1.2323]
[1720792223668,0.11611698,57921.0,57920.0,1.35553]
[1720792223669,0.03849554,57921.0,57920.0,1.35553]
[1720792223867,0.09024005,57921.0,57920.0,1.2323]
[1720792224119,0.14198667,57921.0,57920.0,1.2323]
[1720792224300,0.03849554,57921.0,57920.0,1.2323]
[1720792224536,0.16785946,57921.0,57920.0,1.2323]
[1720792225362,0.1414,57920.0,57915.0,1.2324]
[1720792225581,0.1294341,57917.0,57916.0,0.00306353]
[1720792225781,0.14204483,57917.0,57916.0,0.00306353]
[1720792225987,0.16792964,57917.0,57916.0,0.00306353]
[1720792226439,0.03849554,57917.0,57916.0,0.00306353]
[1720792227290,0.19388503,57917.0,57916.0,0.00306353]
[1720792227771,0.22741353,57917.0,57916.0,0.00306353]
[1720792228173,0.07202404,57917.0,57915.0,1.2324]
[1720792228420,0.07202404,57917.0,57915.0,0.0001]
[1720792228421,0.03849554,57916.0,57915.0,0.0001]
[1720792229712,0.03849554,57916.0,57915.0,0.518099]
[1720792229931,0.12951031,57917.0,57915.0,0.406433]
[1720792230143,0.12951031,57917.0,57916.0,0.00306353]
[1720792230355,0.0761,57920.0,57916.0,0.00306353]
[1720792230580,0.1921185,57919.0,57916.0,0.00306353]
[1720792230784,0.03669981,57918.0,57916.0,0.00306353]
[1720792231240,0.0761,57926.0,57917.0,0.345321]
[1720792231241,0.15541869,57919.0,57917.0,0.345321]
[1720792231447,0.0761,57926.0,57918.0,0.26083488]
[1720792231448,0.15541869,57921.0,57918.0,0.26083488]
[1720792231629,0.03677804,57920.0,57918.0,0.08817788]
[1720792231884,0.03677804,57919.0,57918.0,0.09234084]
[1720792232092,0.03677804,57919.0,57918.0,0.08927731]
[1720792232513,0.03677804,57919.0,57918.0,0.09234084]
[1720792232924,0.03697811,57919.0,57918.0,0.09234084]
[1720792233154,0.19242231,57919.0,57918.0,0.09234084]
[1720792233358,0.01790438,57927.0,57918.0,0.09234084]
[1720792233571,0.15544461,57919.0,57918.0,0.09234084]
[1720792233775,0.0369873,57919.0,57918.0,0.08927731]
[1720792233980,0.0369873,57922.0,57918.0,0.08927731]
[1720792234187,0.15545255,57920.0,57918.0,0.08927731]
[1720792234448,0.01790438,57927.0,57919.0,1.23536353]
[1720792234449,0.17487519,57924.0,57919.0,1.23536353]
[1720792234648,0.03679963,57923.0,57919.0,1.23536353]
[1720792234869,0.03679963,57922.0,57920.0,0.00395881]
[1720792235086,0.01790438,57927.0,57920.0,0.00395881]
[1720792235087,0.17487519,57926.0,57921.0,0.00306353]
[1720792235287,0.00405902,57927.0,57926.0,0.08511435]
[1720792235499,0.04078277,57927.0,57926.0,0.60301635]
[1720792235715,0.04078277,57927.0,57926.0,0.08907196]
[1720792235922,0.04078277,57927.0,57926.0,0.09213549]
[1720792235923,0.04077717,57927.0,57926.0,0.09213549]
[1720792236154,0.19622021,57927.0,57926.0,0.00702114]
[1720792236357,0.04077781,57927.0,57926.0,0.00395761]
[1720792236768,0.04077781,57927.0,57925.0,0.00306353]
[1720792236989,0.00405902,57927.0,57926.0,0.00395761]
[1720792237195,0.00405902,57927.0,57923.0,0.00306353]
[1720792237403,0.1554337,57925.0,57923.0,0.00306353]
[1720792237620,0.03848725,57924.0,57922.0,0.00306353]
[1720792237829,0.03848725,57923.0,57922.0,0.00306353]
[1720792238690,0.03848725,57923.0,57922.0,0.17570853]
[1720792239311,0.03746586,57923.0,57922.0,0.17570853]
[1720792239553,0.03746586,57923.0,57922.0,0.00306353]
[1720792239757,0.03746586,57923.0,57922.0,0.52099953]
[1720792239967,0.03746586,57923.0,57922.0,1.09652793]
[1720792240174,0.00405902,57927.0,57926.0,0.172634]
[1720792240379,0.04069053,57927.0,57926.0,0.00306353]
[1720792240592,0.04069053,57927.0,57926.0,0.73201866]
[1720792240834,0.04069053,57927.0,57926.0,1.01634788]
[1720792241038,0.04069053,57927.0,57926.0,0.66801635]
[1720792241470,0.04068732,57927.0,57924.0,0.00306353]
[1720792241675,0.04068732,57927.0,57923.0,0.00306353]
[1720792241676,0.0366283,57926.0,57923.0,0.00306353]
[1720792241883,0.0366283,57925.0,57923.0,0.00306353]
[1720792242097,0.00405902,57927.0,57923.0,0.00306353]
[1720792242098,0.19204169,57924.0,57923.0,0.00306353]
[1720792242317,0.0366283,57924.0,57923.0,0.00306353]
[1720792242543,0.03640494,57924.0,57923.0,0.00306353]
[1720792243160,0.03640494,57924.0,57923.0,0.00701272]
[1720792243380,0.05793612,57924.0,57923.0,0.00701272]
[1720792243589,0.11530494,57924.0,57923.0,0.00701272]
[1720792243806,0.17530494,57924.0,57923.0,0.00394919]
[1720792244009,0.11530494,57924.0,57923.0,0.00394919]
[1720792244833,0.23530494,57924.0,57923.0,0.00394919]
[1720792245040,0.11530494,57924.0,57917.0,0.08817788]
[1720792245246,0.17486806,57919.0,57917.0,0.08817788]
[1720792245421,0.03657038,57918.0,57917.0,0.08817788]
[1720792245633,0.03680001,57918.0,57917.0,0.08817788]
[1720792245924,0.03680001,57918.0,57916.0,1.2323]
[1720792246127,0.03680001,57917.0,57916.0,1.2323]
[1720792247868,0.03680001,57917.0,57916.0,1.35554]
[1720792248081,0.03680001,57917.0,57916.0,1.2323]
[1720792248723,0.19223667,57917.0,57916.0,1.31741435]
[1720792248940,0.19264171,57917.0,57916.0,1.31741435]
[1720792249155,0.2066669,57917.0,57916.0,1.31741435]
[1720792249370,0.03721108,57917.0,57916.0,2.06884175]
[1720792249576,0.03721108,57917.0,57916.0,1.55085175]
[1720792249785,0.03721108,57917.0,57916.0,1.38061435]
[1720792251030,0.03721108,57917.0,57916.0,1.55327735]
[1720792251237,0.10360919,57917.0,57916.0,1.78594135]
[1720792251449,0.10360919,57917.0,57916.0,2.24393135]
[1720792251680,0.10360919,57918.0,57917.0,0.517981]
[1720792251896,0.10360919,57918.0,57917.0,0.92636553]
[1720792252101,0.10360919,57918.0,57917.0,0.86636553]
[1720792252315,0.10360919,57918.0,57917.0,1.15660293]
[1720792252517,0.15540693,57925.0,57922.0,0.172645]
[1720792252721,0.15540693,57925.0,57923.0,0.00306353]
[1720792252722,0.03862468,57924.0,57923.0,0.00306353]
[1720792253334,0.03862468,57924.0,57922.0,0.00306353]
[1720792253539,0.15540693,57925.0,57922.0,0.00306353]
[1720792253540,0.03862468,57923.0,57922.0,0.00306353]
[1720792254804,0.0385329,57923.0,57922.0,0.00306353]
[1720792254986,0.0385329,57923.0,57920.0,0.17571353]
[1720792255205,0.15540029,57924.0,57922.0,1.2323]
[1720792255415,0.19393938,57923.0,57922.0,1.2323]
[1720792255620,0.03853909,57923.0,57922.0,1.2323]
[1720792256397,0.19396119,57923.0,57922.0,1.404945]
[1720792256605,0.03853909,57923.0,57922.0,1.2323]
[1720792256830,0.19396119,57923.0,57922.0,1.2323]
[1720792257169,0.03853909,57923.0,57922.0,1.2323]
[1720792257504,0.19396119,57923.0,57922.0,1.2323]
[1720792257710,0.03853909,57923.0,57922.0,1.2323]
[1720792257917,0.03853909,57923.0,57922.0,1.469445]
[1720792258121,0.03853909,57923.0,57922.0,2.3577384]
[1720792258399,0.00405902,57927.0,57926.0,0.232634]
[1720792258400,0.13356502,57927.0,57926.0,0.232634]
[1720792258608,0.00405902,57927.0,57926.0,1.23417]
[1720792258811,0.00405902,57927.0,57926.0,1.3444074]
[1720792259018,0.00405902,57927.0,57926.0,1.34834965]
[1720792259222,0.08174488,57927.0,57926.0,3.12821765]
[1720792259435,0.00405902,57927.0,57926.0,3.78244918]
[1720792259643,0.00405902,57927.0,57926.0,3.61221178]
[1720792260055,0.00405902,57927.0,57926.0,3.60914825]
[1720792260466,0.00405902,57927.0,57926.0,4.05441625]
[1720792260644,0.002,57929.0,57928.0,2.204752]
[1720792260872,0.002,57929.0,57928.0,2.894796]
[1720792261074,0.002,57929.0,57928.0,2.95873055]
[1720792261277,0.002,57929.0,57928.0,2.89873055]
[1720792261504,0.002,57929.0,57928.0,2.63781195]
[1720792261711,0.002,57929.0,57928.0,2.34757455]
[1720792261930,0.002,57929.0,57928.0,1.30223455]
[1720792262136,0.13141807,57929.0,57928.0,1.23623455]
[1720792262341,0.13141807,57929.0,57928.0,2.22299801]
[1720792262543,0.10550825,57929.0,57928.0,2.56825401]
[1720792262746,0.002,57929.0,57928.0,1.87774201]
[1720792262948,0.002,57929.0,57928.0,2.22299801]
[1720792263057,0.002,57929.0,57928.0,2.28409801]
[1720792263481,0.002,57929.0,57928.0,2.34409801]
[1720792263698,0.002,57929.0,57928.0,2.40409801]
[1720792263911,0.05374487,57929.0,57928.0,2.68935401]
[1720792264144,0.002,57929.0,57928.0,2.71235401]
[1720792264377,0.002,57929.0,57928.0,1.64259055]
[1720792264600,0.002,57929.0,57928.0,1.81504425]
[1720792264601,0.10549151,57929.0,57928.0,1.81504425]
[1720792264802,0.002,57929.0,57928.0,2.50555625]
[1720792265006,0.05373916,57929.0,57928.0,2.73579365]
[1720792265206,0.002,57929.0,57928.0,2.73579365]
[1720792265440,0.05373916,57929.0,57928.0,2.77549365]
[1720792265642,0.07961235,57929.0,57928.0,1.54648825]
[1720792265848,0.07961235,57929.0,57928.0,2.23700025]
[1720792266050,0.002,57929.0,57928.0,1.00487455]
[1720792266449,0.002,57929.0,57928.0,0.31436255]
[1720792266852,0.002,57929.0,57928.0,0.77278061]
[1720792267053,0.002,57929.0,57928.0,1.60629261]
[1720792267054,0.05372639,57929.0,57928.0,1.60629261]
[1720792267262,0.002,57929.0,57928.0,1.60629261]
[1720792268116,0.002,57929.0,57928.0,1.37313055]
[1720792268321,0.002,57929.0,57928.0,1.00487455]
[1720792268732,0.002,57929.0,57928.0,1.35013055]
[1720792268958,0.002,57929.0,57928.0,0.06503455]
[1720792269147,0.03881848,57929.0,57928.0,0.00393455]
[1720792269357,0.06475825,57929.0,57928.0,0.00393455]
[1720792269548,0.06475825,57929.0,57926.0,0.0001]
[1720792269747,0.19198895,57928.0,57926.0,0.0001]
[1720792269995,0.03681848,57927.0,57926.0,0.0001]
[1720792270206,0.03699912,57927.0,57926.0,0.0001]
[1720792271472,0.03699912,57927.0,57926.0,0.00386321]
[1720792271673,0.03699912,57927.0,57926.0,0.0001]
[1720792271877,0.03699912,57927.0,57926.0,0.00386321]
[1720792272085,0.03699912,57927.0,57926.0,0.0001]
[1720792272289,0.03699912,57927.0,57926.0,0.00386321]
[1720792272474,0.03699912,57927.0,57926.0,0.0001]
[1720792272678,0.05776709,57927.0,57926.0,0.0001]
[1720792273415,0.1418,57927.0,57926.0,0.0001]
[1720792273639,1.34914185,57927.0,57926.0,0.0001]
[1720792273851,0.1418,57927.0,57926.0,0.0001]
[1720792274056,0.29826073,57927.0,57926.0,0.0001]
[1720792274276,0.06,57922.0,57915.0,0.000913]
[1720792274494,0.28651435,57916.0,57915.0,0.000913]
[1720792274710,0.06,57905.0,57898.0,0.00306353]
[1720792274945,0.06,57906.0,57898.0,0.00306353]
[1720792274946,0.17467957,57903.0,57898.0,0.00306353]
[1720792275166,0.2111403,57902.0,57898.0,0.00306353]
[1720792275372,0.2111403,57902.0,57882.0,0.14591435]
[1720792275373,0.06,57900.0,57882.0,0.0608]
[1720792275579,0.05172665,57885.0,57882.0,0.0608]
[1720792275786,0.05172665,57883.0,57882.0,0.1608]
[1720792275997,0.05172665,57887.0,57884.0,0.06]
[1720792276209,0.05172665,57889.0,57886.0,0.345506]
[1720792276416,0.05172665,57889.0,57888.0,0.172747]
[1720792276417,0.05169101,57889.0,57888.0,0.172747]
[1720792276626,0.05168771,57890.0,57887.0,0.21364607]
[1720792276850,0.05168771,57890.0,57886.0,0.00345467]
[1720792277059,0.05168771,57890.0,57883.0,0.34552]
[1720792277273,0.05168771,57892.0,57885.0,0.172754]
[1720792277445,0.07753156,57893.0,57882.0,0.0608]
[1720792277446,0.05168771,57891.0,57882.0,0.0608]
[1720792277670,0.05158771,57889.0,57882.0,0.0608]
[1720792277885,0.05158771,57889.0,57882.0,0.233564]
[1720792278230,0.07753156,57892.0,57882.0,0.0608]
[1720792278473,0.07753156,57892.0,57877.0,0.0635]
[1720792278474,0.07753156,57888.0,57877.0,0.0635]
[1720792278887,0.07753156,57887.0,57877.0,0.0635]
[1720792279080,0.07753156,57887.0,57873.0,0.0812]
[1720792279281,0.0821,57886.0,57872.0,0.0635]
[1720792279510,0.15963156,57886.0,57870.0,0.1728]
[1720792279733,0.15950896,57886.0,57874.0,0.172789]
[1720792280053,0.15950896,57886.0,57870.0,0.1]
[1720792280261,0.0821,57886.0,57871.0,0.172797]
[1720792280468,0.0821,57886.0,57869.0,0.25791635]
[1720792280693,0.0821,57886.0,57872.0,0.172794]
[1720792280896,0.0821,57886.0,57871.0,0.172797]
[1720792281053,0.0821,57886.0,57869.0,0.08511435]
[1720792281253,0.0159509,57885.0,57868.0,0.0642]
[1720792281463,0.08511435,57881.0,57867.0,0.069286]
[1720792281684,0.06,57882.0,57867.0,0.069286]
[1720792281822,0.16271435,57881.0,57869.0,0.0001]
[1720792282028,0.03437501,57880.0,57867.0,0.069286]
[1720792282230,0.066,57879.0,57869.0,0.0001]
[1720792282467,0.066,57879.0,57876.0,0.0001]
[1720792283141,0.0775,57881.0,57880.0,0.0001]
[1720792283357,0.0775,57881.0,57870.0,0.0001]
[1720792283358,0.09309884,57881.0,57870.0,0.0001]
[1720792283562,0.09309884,57881.0,57880.0,0.0036837]
[1720792284007,0.09309884,57881.0,57877.0,0.000913]
[1720792284008,0.15309884,57881.0,57877.0,0.000913]
[1720792284218,0.14511435,57878.0,57877.0,0.000913]
[1720792284419,0.55630346,57878.0,57877.0,0.000913]
[1720792284639,0.47108911,57878.0,57877.0,0.000913]
[1720792285100,0.41118911,57878.0,57877.0,0.000913]
[1720792285307,0.71320237,57878.0,57877.0,0.000913]
[1720792285721,0.62808802,57878.0,57877.0,0.000913]
[1720792286138,0.57098911,57878.0,57877.0,0.000913]
[1720792286361,0.1,57871.0,57865.0,0.009108]
[1720792286575,0.0598,57866.0,57865.0,0.009108]
[1720792286790,0.1457,57866.0,57865.0,0.009108]
[1720792287225,0.16027,57866.0,57865.0,0.009108]
[1720792287436,0.2055,57866.0,57865.0,0.009108]
[1720792287648,0.1457,57866.0,57862.0,0.009086]
[1720792287857,0.08511435,57863.0,57862.0,0.009086]
[1720792288071,0.96193346,57863.0,57862.0,0.009086]
[1720792288297,0.96193346,57863.0,57858.0,0.000913]
[1720792288298,0.0807,57859.0,57858.0,0.000913]
[1720792288502,0.806047,57859.0,57858.0,0.000913]
[1720792288709,0.1598,57858.0,57851.0,0.009086]
[1720792288928,0.14624507,57858.0,57851.0,0.009086]
[1720792289137,0.39941307,57858.0,57851.0,0.009086]
[1720792289353,1.01816335,57858.0,57851.0,0.009086]
[1720792289563,0.94249042,57858.0,57851.0,0.009086]
[1720792289767,0.14614507,57858.0,57851.0,0.009086]
[1720792289978,0.1418,57858.0,57851.0,0.009086]
[1720792290409,0.14614507,57858.0,57851.0,0.009086]
[1720792290618,0.14614507,57858.0,57852.0,0.0003]
[1720792290826,0.1418,57858.0,57854.0,0.0003]
[1720792291006,0.0807,57858.0,57854.0,0.0003]
[1720792291693,0.0807,57858.0,57855.0,0.0003]
[1720792291903,0.0807,57858.0,57851.0,0.009086]
[1720792291904,0.01394328,57863.0,57859.0,0.0003]
[1720792292133,0.0794,57867.0,57862.0,0.0003]
[1720792292350,0.01410951,57865.0,57862.0,0.0003]
[1720792292567,0.0794,57867.0,57862.0,0.0003]
[1720792293002,0.0794,57867.0,57860.0,0.0003]
[1720792293201,0.12802891,57867.0,57859.0,0.0003]
[1720792293615,0.08511435,57863.0,57854.0,0.00306353]
[1720792293818,0.09067144,57862.0,57860.0,0.00375186]
[1720792294017,0.34588911,57863.0,57854.0,0.00306353]
[1720792294246,0.34588911,57863.0,57851.0,0.009086]
[1720792294247,0.04948035,57862.0,57851.0,0.009086]
[1720792294657,0.34588911,57863.0,57851.0,0.009086]
[1720792294658,0.34588911,57863.0,57854.0,0.064]
[1720792294871,0.34588911,57863.0,57858.0,0.00357584]
[1720792295282,0.0598,57862.0,57851.0,0.009086]
[1720792295491,0.0598,57861.0,57851.0,0.009086]
[1720792295697,0.34588911,57863.0,57851.0,0.009086]
[1720792295900,0.34588911,57863.0,57852.0,0.0003]
[1720792296102,0.0598,57860.0,57851.0,0.009086]
[1720792296728,0.0598,57859.0,57851.0,0.009086]
[1720792296932,0.02395,57858.0,57851.0,0.009086]
[1720792297346,0.0005,57860.0,57852.0,0.0003]
[1720792297544,0.0005,57860.0,57857.0,0.009186]
[1720792297747,0.0005,57860.0,57857.0,0.009486]
[1720792297950,0.0005,57860.0,57857.0,0.073386]
[1720792298151,0.0005,57860.0,57859.0,0.0003]
[1720792298410,0.0005,57860.0,57858.0,0.00357993]
[1720792298611,0.0005,57860.0,57859.0,0.0003]
[1720792298820,0.0005,57860.0,57859.0,0.00387986]
[1720792299031,0.0005,57860.0,57857.0,0.073086]
[1720792299235,0.0005,57860.0,57859.0,0.00387986]
[1720792299443,0.0005,57860.0,57857.0,0.009186]
[1720792299652,0.0786,57860.0,57857.0,0.009186]
[1720792299850,0.01386,57859.0,57857.0,0.009186]
[1720792300060,0.0786,57860.0,57857.0,0.009186]
[1720792300061,0.0005,57860.0,57857.0,0.009186]
[1720792300463,0.0005,57860.0,57857.0,0.009486]
[1720792300665,0.0005,57860.0,57857.0,0.073986]
[1720792300865,0.0005,57860.0,57858.0,0.00357624]
[1720792301079,0.0005,57860.0,57857.0,0.073986]
[1720792301296,0.0005,57860.0,57859.0,0.00357624]
[1720792301503,0.0005,57860.0,57857.0,0.009186]
[1720792301711,0.0005,57860.0,57859.0,0.00357624]
[1720792301859,0.0005,57860.0,57857.0,0.009186]
[1720792302061,0.0005,57860.0,57858.0,0.08869059]
[1720792302266,0.0005,57860.0,57858.0,0.00357624]
[1720792302465,0.0005,57860.0,57859.0,0.08511435]
[1720792302665,0.0005,57860.0,57859.0,0.08541435]
[1720792302872,0.0005,57860.0,57859.0,0.08899059]
[1720792303843,0.0005,57860.0,57859.0,0.32802359]
[1720792304149,0.0005,57860.0,57859.0,1.3684811]
[1720792304526,0.0005,57860.0,57859.0,1.8505481]
[1720792304746,0.0005,57860.0,57859.0,2.2557481]
[1720792304954,0.51068611,57886.0,57877.0,0.0003]
[1720792305155,0.56175472,57886.0,57879.0,0.00306353]
[1720792305358,0.0799,57892.0,57879.0,0.00306353]
[1720792305359,0.0799,57892.0,57879.0,0.00336353]
[1720792305547,0.0799,57892.0,57878.0,0.00355576]
[1720792305548,0.1397,57892.0,57881.0,0.00306353]
[1720792305776,0.11959543,57891.0,57881.0,0.00306353]
[1720792305979,0.01077551,57890.0,57880.0,0.00306353]
[1720792306227,0.01077551,57890.0,57878.0,0.00306353]
[1720792306487,0.0245464,57889.0,57881.0,0.0035492]
[1720792306725,0.09304876,57892.0,57884.0,0.0003]
[1720792306726,0.01077551,57888.0,57884.0,0.0003]
[1720792306964,0.09304876,57892.0,57884.0,0.0003]
[1720792307192,0.01077477,57891.0,57885.0,0.0003]
[1720792307441,0.01077477,57891.0,57888.0,0.00306353]
[1720792307650,0.01314876,57892.0,57888.0,0.00306353]
[1720792307854,0.01314876,57892.0,57887.0,0.0003]
[1720792308060,0.0781,57897.0,57891.0,0.0003]
[1720792308265,0.01366859,57895.0,57891.0,0.0003]
[1720792308463,0.0781,57897.0,57891.0,0.0003]
[1720792308572,0.01077357,57896.0,57891.0,0.0003]
[1720792308775,0.01077357,57896.0,57885.0,0.00336353]
[1720792308980,0.01529736,57895.0,57886.0,0.00354167]
[1720792309213,0.0598,57894.0,57886.0,0.00354167]
[1720792309390,0.0598,57894.0,57880.0,0.0004]
[1720792309391,0.0598,57890.0,57887.0,0.00306353]
[1720792309791,0.0598,57890.0,57881.0,0.00306353]
[1720792309994,0.0598,57886.0,57881.0,0.00306353]
[1720792310199,0.02558855,57894.0,57881.0,0.00306353]
[1720792310200,0.0598,57888.0,57881.0,0.00306353]
[1720792310401,0.02558855,57894.0,57880.0,0.0001]
[1720792310402,0.0598,57887.0,57880.0,0.0001]
[1720792310806,0.06632631,57893.0,57880.0,0.0001]
[1720792310807,0.0598,57886.0,57880.0,0.0001]
[1720792311213,0.0598,57884.0,57880.0,0.0001]
[1720792311420,0.1353,57883.0,57880.0,0.0001]
[1720792311616,0.02003,57882.0,57880.0,0.0001]
[1720792312251,0.0598,57881.0,57880.0,0.0001]
[1720792312466,0.0598,57876.0,57865.0,0.00306353]
[1720792312668,0.0598,57876.0,57864.0,0.0003]
[1720792312871,0.0598,57876.0,57862.0,0.1465]
[1720792312872,0.01077759,57875.0,57865.0,0.0003]
[1720792313079,0.01077759,57875.0,57864.0,0.0003]
[1720792313284,0.01077759,57875.0,57862.0,0.0652]
[1720792313487,0.01077759,57875.0,57866.0,0.0003]
[1720792313686,0.02003,57882.0,57865.0,0.08511435]
[1720792313687,0.01077759,57874.0,57869.0,0.0003]
[1720792313897,0.48118911,57883.0,57869.0,0.0003]
[1720792314103,0.01077703,57882.0,57870.0,0.0003]
[1720792314319,0.0251277,57881.0,57870.0,0.0778]
[1720792314521,0.01077703,57880.0,57873.0,0.0003]
[1720792314723,0.01077687,57879.0,57870.0,0.0778]
[1720792314934,0.01067687,57878.0,57870.0,0.0778]
[1720792315139,0.01067687,57878.0,57870.0,0.0781]
[1720792315337,0.49486625,57883.0,57870.0,0.0781]
[1720792315568,0.43506625,57883.0,57873.0,0.0003]
[1720792315768,0.35956625,57883.0,57875.0,0.063]
[1720792315970,0.41150287,57883.0,57875.0,0.063]
[1720792316173,0.35956625,57883.0,57880.0,0.0001]
[1720792320030,0.35939211,57883.0,57880.0,0.0001]
[1720792320848,0.013503,57883.0,57880.0,0.0001]
[1720792321253,0.91988828,57890.0,57881.0,0.00337662]
[1720792321446,0.01337685,57888.0,57881.0,0.00367662]
[1720792321649,0.86008828,57890.0,57881.0,0.0003]
[1720792321840,0.86008828,57890.0,57882.0,0.0003]
[1720792321981,0.86008828,57890.0,57883.0,0.00306353]
[1720792322193,0.51419917,57890.0,57883.0,0.078]
[1720792322429,0.51419917,57890.0,57882.0,0.00306353]
[1720792322636,0.51419917,57890.0,57880.0,0.0001]
[1720792322637,0.52749921,57890.0,57881.0,0.00306353]
[1720792322969,0.09589992,57889.0,57881.0,0.00306353]
[1720792323444,0.0598,57887.0,57882.0,0.0033766]
[1720792323658,0.0598,57887.0,57883.0,0.00306353]
[1720792323866,0.0598,57887.0,57881.0,0.00306353]
[1720792323867,0.0799,57887.0,57881.0,0.00306353]
[1720792324078,0.0598,57886.0,57881.0,0.00306353]
[1720792324277,0.0598,57886.0,57880.0,0.0001]